Cogmind - Beta 13 @@@ ROGUE MODE // 2024.04.05 @ 13:26:15 Player: JackZewap Result: Self-destructed Performance ------------- Evolutions (1) 500 Regions Visited (2) 400 Robots Destroyed (26) 130 Value Destroyed (595) 595 Prototype IDs (1) 20 Alien Tech Used (0) 0 Bonus (50) 50 TOTAL SCORE: 1695 Bonus ------- High Alert Combat Kills 50 Cogmind --------- Core Integrity 378/400 Matter 23/300 Energy 238/240 System Corruption 0% Temperature Cool (0) Movement Rolling (90) Location -9/Materials Parts ------- > --- POWER (2) -------- Backup Power I Nuclear Core > --- PROPULSION (3) --- Armored Wheel Armored Wheel > --- UTILITY (2) ------ Improved Targeting Computer Improved Targeting Computer > --- WEAPON (2) ------- Medium Laser > --- INVENTORY (5) ---- Improved Ion Engine Medium Matter Pod (0) Long-range Tractor Beam Improved Medium Laser Plasma Cutter Peak State ------------ > --- POWER ------------ Backup Power I Nuclear Core > --- PROPULSION ------- Armored Wheel Armored Wheel > --- UTILITY ---------- Improved Targeting Computer Improved Targeting Computer > --- WEAPON ----------- Improved Medium Laser Mining Laser > --- INVENTORY -------- Improved Ion Engine Medium Matter Pod Long-range Tractor Beam Medium Laser Plasma Cutter [Rating: 16] Favorites ----------- Power Improved Ion Engine Engine Improved Ion Engine Power Core Nuclear Core Propulsion Flight Unit Wheel Armored Wheel Flight Unit Flight Unit Utility Improved Targeting Computer Processor Improved Targeting Computer Weapon Mining Laser Energy Gun Medium Laser Ballistic Gun Assault Rifle Launcher Grenade Launcher Special Weapon Mining Laser Build | -11 -10 -9 ------- Run | Yrd Mat Mat Slots Evolved 2 | . . 2 Power 1 | . . 1 Propulsion 1 | . . 1 Utility . | . . . Weapon . | . . . Parts Attached 41 | 5 29 7 Power 9 | 1 5 3 Engine 7 | 1 5 1 Core 2 | . . 2 Reactor . | . . . Propulsion 9 | 2 5 2 Treads . | . . . Leg . | . . . Wheel 4 | 2 . 2 Hover . | . . . Flight 5 | . 5 . Utility 2 | . 2 . Device . | . . . Storage . | . . . Processor 2 | . 2 . Hackware . | . . . Protection . | . . . Artifact . | . . . Weapon 21 | 2 17 2 Energy Gun 4 | . 2 2 Energy Cannon . | . . . Ballistic Gun 6 | 2 4 . Ballistic Cannon . | . . . Launcher 7 | . 7 . Special Weapon 4 | . 4 . Impact Weapon . | . . . Slashing Weapon . | . . . Piercing Weapon . | . . . Special Melee Weapon . | . . . Unidentified Prototypes 1 | . . 1 Parts Lost 10 | . 9 1 Power 2 | . 2 . Propulsion 4 | . 4 . Utility . | . . . Weapon 4 | . 3 1 Highest Loss Streak 3 | . 3 1 To Critical Strikes . | . . . Average Slot Usage (%) 78 | . 75 86 Engine 11 | . 11 11 Core 2 | . . 10 Wheel 7 | . 3 20 Flight 17 | . 22 1 Processor 21 | . 21 22 Energy Gun 3 | . 2 6 Ballistic Gun 2 | . 3 . Launcher 3 | . 4 . Special Weapon 6 | . 4 15 Naked Turns . | . . . Heaviest Build 15 | 7 15 11 Greatest Support 24 | 20 20 24 Greatest Overweight (x) 2 | . 2 1 Average Overweight (x) . | . . . Largest Inventory Capacity 5 | 5 5 5 Average Capacity 5 | 5 5 5 Most Carried 5 | . 5 5 Average Carried 3 | . 3 4 Final Capacity 5 | 5 5 5 Final Carried 5 | . 3 5 Class Distribution -------------------- 100% | Mutant Dominant Class ---------------- Mutant | -10/Materials Mutant | -9/Materials Resources | -11 -10 -9 ----------- Run | Yrd Mat Mat Matter Collected 614 | 232 382 . Remotely . | . . . Salvage Created 476 | . 476 . Parts 33 | . 33 . Haulers Intercepted . | . . . Recyclers Shooed . | . . . Parts Field Recycled . | . . . Retrieved Matter . | . . . Parts Self-Destructed . | . . . Prevented . | . . . Kills | -11 -10 -9 ------- Run | Yrd Mat Mat Combat Hostiles Destroyed 20 | . 20 . Guns 6 | . 6 . AOE 13 | . 13 . Classes Destroyed 6 | . 6 . Worker 2 | . 2 . Builder 1 | . 1 . Tunneler 1 | . 1 . Watcher 2 | . 2 . Swarmer 6 | . 6 . Grunt 14 | . 14 . Best Kill Streak 9 | . 9 . Combat Bots Only 8 | . 8 . Max Kills in Single Turn 2 | . 2 . Gunslinging 1 | . 1 . Exploded 2 | . 2 . Melee . | . . . Uniques/NPCs Destroyed . | . . . Combat | -11 -10 -9 -------- Run | Yrd Mat Mat Hostile Shots Fired 142 | . 123 19 Missed 53 | . 47 6 Damage Taken 1019 | . 861 158 Core 209 | . 187 22 Absorbed by Shields . | . . . Core Remaining (%) 62 | 100 25 . Volleys Fired 78 | . 67 11 Largest 2 | . 2 2 Hottest 150 | . 150 150 Shots Fired 111 | . 99 12 Gun 60 | . 53 7 Cannon . | . . . Launcher 24 | . 24 . Special 27 | . 22 5 Kinetic 35 | . 35 . Thermal 52 | . 40 12 Explosive 24 | . 24 . Electromagnetic . | . . . Robot Hit Streak 14 | . 14 7 Robot Miss Streak 3 | . 3 1 Penetration Max . | . . . Secondary Targets 1 | . 1 . Max Gunslinging Chain 1 | . 1 . Shots Hit Robots 53 | . 45 8 Core Hits 43 | . 42 1 Critical Kills . | . . . Critical Parts Destroyed . | . . . Critical Strikes 3 | . 1 2 Burn 3 | . 1 2 Melee Attacks . | . . . Impact . | . . . Slashing . | . . . Piercing . | . . . Sneak Attacks . | . . . Combat Hostiles . | . . . Follow-up Attacks . | . . . Damage Inflicted 1842 | . 1716 126 Guns 338 | . 263 75 Cannons . | . . . Explosions 1363 | . 1363 . Melee . | . . . Ramming 4 | . 1 3 Kinetic 250 | . 250 . Thermal 225 | . 102 123 Explosive 1363 | . 1363 . Electromagnetic . | . . . Impact . | . . . Slashing . | . . . Piercing . | . . . Highest Corruption . | . . . Average Corruption . | . . . Corruption Purged . | . . . Corruption Blocked . | . . . Overload Shots . | . . . Overflow Damage 21 | . 21 . Projectiles . | . . . Explosions 21 | . 21 . Melee . | . . . Knockbacks . | . . . Impact . | . . . Kinetic . | . . . Secondary . | . . . Self-Inflicted Damage 77 | . 76 1 Shots 4 | . 4 . Rammed 3 | . 1 2 Targets Rammed 3 | . 1 2 Kicked . | . . . Crushed . | . . . Highest Temperature 182 | . 182 60 Average Temperature 42 | . 52 22 Received Heat Transfer 390 | . 324 66 Siege Activations . | . . . Robots Corrupted . | . . . Combat Hostiles . | . . . Parts Fried . | . . . Impact Corruptions . | . . . Robots Melted 1 | . 1 . Combat Hostiles 1 | . 1 . Parts Melted . | . . . Heat Transferred 877 | . 407 470 Parts Sabotaged . | . . . Parts Stolen . | . . . Parts Stripped . | . . . Power Chain Reactions . | . . . Alert | -11 -10 -9 ------- Run | Yrd Mat Mat Peak Influence 617 | . 617 121 Initial 53 | . . 53 Average 157 | . 189 74 Maximum Alert Level 2 | . 2 . Low Security (%) 82 | 100 76 100 Level 1 7 | . 9 . Level 2 10 | . 14 . Level 3 . | . . . Level 4 . | . . . Level 5 . | . . . High Security . | . . . Max Security . | . . . Squads Dispatched 6 | . 6 . Investigation 5 | . 5 . Extermination . | . . . Reinforcement 1 | . 1 . Assault . | . . . Garrison . | . . . Intercept . | . . . Searches Triggered . | . . . Construction Impeded . | . . . Haulers Reinforced . | . . . Active Scanning Responses . | . . . Cargo Convoy Interrupts . | . . . Stealth | -11 -10 -9 --------- Run | Yrd Mat Mat Distress Signals . | . . . Communications Jammed . | . . . Distress Signals . | . . . Times Spotted 49 | . 36 13 Peak Tracking Total 9 | . 9 9 Tactical Retreats 10 | . 8 2 Traps | -11 -10 -9 ------- Run | Yrd Mat Mat Traps Triggered 3 | . 3 . Indirectly . | . . . Trap Hack Attempts . | . . . Triggered . | . . . Disarmed . | . . . Reprogrammed . | . . . Reused . | . . . Traps Extracted . | . . . Installed . | . . . Triggered . | . . . Machines | -11 -10 -9 ---------- Run | Yrd Mat Mat Machines Disabled . | . . . Max in Single Turn . | . . . Machines Repaired . | . . . Machines Dismantled 4 | . 2 2 Machines Sabotaged . | . . . Overloaded Fab Kills . | . . . Hacking | -11 -10 -9 --------- Run | Yrd Mat Mat Machines Accessed 9 | . 9 . Terminals 6 | . 6 . Fabricators . | . . . Repair Stations 1 | . 1 . Recycling Units 2 | . 2 . Scanalyzers . | . . . Garrison Access . | . . . Total Hacks 34 | . 34 . Successful 14 | . 14 . Failed 20 | . 20 . Catastrophic 3 | . 3 . Database Lockouts . | . . . Manual 29 | . 29 . Terminals 27 | . 27 . Fabricators . | . . . Repair Stations 1 | . 1 . Recycling Units 6 | . 6 . Scanalyzers . | . . . Garrison Access . | . . . Terminal Hacks 3 | . 3 . Terminal Index 1 | . 1 . Unreport Threat 2 | . 2 . Fabricator Hacks . | . . . Repair Station Hacks 1 | . 1 . Refit 1 | . 1 . Recycling Unit Hacks 2 | . 2 . Report Inventory 1 | . 1 . Retrieve Matter 1 | . 1 . Scanalyzer . | . . . Garrison Access Hacks . | . . . Unauthorized Hacks 7 | . 7 . Terminals 6 | . 6 . Assimilate 2 | . 2 . Botnet 4 | . 4 . Fabricators . | . . . Repair Stations . | . . . Recycling Units 1 | . 1 . Reject 1 | . 1 . Scanalyzers . | . . . Garrison Access . | . . . Data Cores Recovered . | . . . Used . | . . . Hacking Detections 7 | . 7 . Full Trace Events 5 | . 5 . Feedback Events . | . . . Feedback Blocked . | . . . Robot Schematics Acquired . | . . . Robots Built . | . . . Authchips . | . . . Time . | . . . Total Robot Build Rating . | . . . Part Schematics Acquired . | . . . Parts Built . | . . . Authchips . | . . . Time . | . . . Total Part Build Rating . | . . . Parts Repaired . | . . . Time . | . . . Parts Recycled . | . . . Recycled Matter . | . . . Retrieved Matter 5 | . 5 . Retrieved Components . | . . . Parts Scanalyzed . | . . . Part Schematics Acquired . | . . . Parts Damaged . | . . . Bothacking | -11 -10 -9 ------------ Run | Yrd Mat Mat Used RIF Installer . | . . . Robots Hacked . | . . . Non-combat . | . . . Combat . | . . . Robot Hacks Applied . | . . . Relay Couplers Released . | . . . Fabnet Peak Effective % . | . . . Robots Rewired . | . . . Allies Hacked . | . . . Hacks Repelled . | . . . Allies | -11 -10 -9 -------- Run | Yrd Mat Mat Total Allies . | . . . Largest Group . | . . . Highest-Rated Group . | . . . Highest-Rated Ally . | . . . Total Orders . | . . . Ally Attacks . | . . . Total Damage . | . . . Kills . | . . . Allies Corrupted . | . . . Allies Melted . | . . . Intel | -11 -10 -9 ------- Run | Yrd Mat Mat Robot Analysis Total . | . . . Derelict Logs Recovered . | . . . Drone Launches . | . . . Drone Recoveries . | . . . Exploration | -11 -10 -9 ------------- Run | Yrd Mat Mat Turns Passed 1644 | 54 1230 360 Spaces Moved 1701 | 55 1372 274 Core 19 | 6 12 1 Treads . | . . . Legs . | . . . Wheels 457 | 49 161 247 Hover . | . . . Flight 1225 | . 1199 26 Fastest Speed 37 | 50 37 37 Average Speed 55 | 76 48 86 Slowest Speed 150 | 80 150 117 Overloaded Moves . | . . . Propulsion Burnouts . | . . . Robots Hopped 12 | . 12 . Cave-ins Triggered . | . . . Exploration Rate (%) 40 | 3 95 22 Regions Visited 2 Branch Regions . Pre-discovered Areas . | . . . Known Exits Taken . | . . . Unknown Exits Taken 2 | 1 1 . Scrap Searched . | . . . Spaces Dug 8 | . 5 3 Terrain Destroyed 143 | . 140 3 Melee . | . . . Projectile 8 | . 5 3 AOE 135 | . 135 . Terrain Rammed . | . . . Walls Destroyed . | . . . Machines Disabled . | . . . Actions | -11 -10 -9 --------- Run | Yrd Mat Mat Total 2162 | 64 1758 340 Wait 269 | 5 248 16 Move 1676 | 54 1348 274 Hop 11 | . 11 . Pick Up 12 | . 9 3 Fast Attach 27 | 5 17 5 Attach 9 | . 7 2 Detach 11 | . 8 3 Swap 5 | . 5 . Drop 21 | . 16 5 Fire 78 | . 67 11 Melee . | . . . Ram 3 | . 1 2 Kick . | . . . Crush . | . . . Escape Stasis . | . . . Rewire . | . . . Trap . | . . . Miscellaneous 40 | . 21 19 Route ------- -11/Scrapyard -10/Materials (discovered 5 exits: [*Mat x3] / [*Min] / [*Sub]) -9/Materials History --------- Turn | Location | Event 4 | -11/Scrapyard | Discovered new exit (range 16) 55 | -11/Scrapyard | Entered Materials 263 | -10/Materials | Destroyed 8 combat bots 267 | -10/Materials | Lost 3 parts (2n1w) 309 | -10/Materials | Build established: Mutant 322 | -10/Materials | Discovered new exit (range 8) 678 | -10/Materials | Discovered new exit (range 16) 773 | -10/Materials | Core integrity fell below 50% 846 | -10/Materials | Discovered new exit (range 16) 1108 | -10/Materials | Discovered new exit (range 6) 1205 | -10/Materials | Discovered new exit (range 9) 1285 | -10/Materials | Entered another Materials area 1285 | -9/Materials | Evolved 2 slots: Power x1, Propulsion x1 1645 | -9/Materials | Self-destructed Last Messages --------------- 01372_ Processing Tank dismantled. 01377_ Dismantling Processing Tank with Plasma Cutter. 01383_ Processing Tank dismantled. 01388_ Dismantling Processing Tank with Plasma Cutter. 01394_ Processing Tank dismantled. 01411_ Dismantling Nuclear Reactor with Plasma Cutter. 01426_ Nuclear Reactor dismantled. 01434_ Acquired Prototype Energy Gun. 01434_ Identified Imp. Medium Laser. 01436_ Dropped Imp. Medium Laser. 01438_ Dropped Med. Laser. 01438_ Acquired Imp. Medium Laser. 01439_ Acquired Med. Laser. 01445_ Destroyed Com. Wheel. 01457_ R-06 Scavenger suffers critical hit (Burn). 01465_ R-06 Scavenger heat damages Com. Wheel. 01470_ M-13 Machinist suffers critical hit (Burn). 01495_ Slammed into U-05 Engineer. 01628_ K-01 Serf cleans the Purification Channel. 01631_ Mining Laser destroyed. Map ----- +----------------------------------------------------+ | ?????????????????????????????????????????????????? | | ?????????????????????????????????????????????????? | | ?????????????????????????????????????????????????? | | ?????????????????????????????????????????????????? | | ?????????????????????????????????????????????????? | | ?????????????????????????????????????????????????? | | ?????????????????????????????????????????????????? | | ?????????????????????????????????????????????????? | | ?????????????????????????????????????????????????? | | ?????????????????????????????????????????????????? | | ?????????????????????????????????????????????????? | | ?????????????????????????????????????????????????? | | ?????????????????????????????????????????????????? | | ?????????????????????????????????????????????????? | | ??????????????????????????????? ??????????????? | | ??????????????????????????????? ????????????? | | ??????????????????????????????# ????????????? | | ??????????????????????????????# ????????????? | | ??????????????????????????????# ???????? ?? | | ??????????????????????????????# ????? | | ??????????????????????????????# ??? | | ??????????????????????????????# ? /? | | ??????????????????????????????# ? | | ??????????????????????????????# " """"" " "? | | ??????????????????????########## """"""""" """"" | | ??????????????????????# @ # """ """ """ | | ??????????????????????# # | | ??????????????????????# """ # | | ??????????????????????# """"" # | | ??????????????????????# """"" + | | ??????????????????????# """"" # | | ??????????????????????# """ # #### ###+#??? | | ??????????????????????# # #??# #??????? | | ??????????????????????# ! # #??# #??????? | | ??????????????????????########## #??# #??????? | | ???????????????????????????????# #??# #??????? | | ???????????????????????????????# #??# #??????? | | ???????????????????????????????# #??# #??????? | | ???????????????????????????????# #??# #??????? | | ???????????????????????????????# #??# #??????? | | ???????????????????????????????# #??# #??????? | | ???????????????????????????????# #??# #???#??? | | ??????????????????????????????? #??# #?? #### | | ??????????????????????????????? #??# #?? | | ??????????????????????????????? ???# #? | | ?????????????????????????????########## #? [! | | ?????????????????????????????# # # ! | | ?????????????????????????????# """ # # | | ?????????????????????????????#= """ # + | | ?????????????????????????????# """ # ######## | +----------------------------------------------------+ Best States ------------- Heat Dissipation 28 Energy Generation 18 Energy Capacity 265 Matter Stores 282 Matter Capacity 300 Sight Range 16 Terrain Scan Density 10 Evasion (%) 62 Targeting Accuracy 12 Item Schematics ----------------- None Robot Schematics ------------------ None Fabricated ------------ Nothing Alien Tech Used ----------------- None Achievements -------------- Quantum Hacking root@ Challenges ------------ None Game ------ Seed SpreadMomentumPod Manual? 0 Play Time 00:27:16 Cumulative 20.6 hours Start 2024.04.05 @ 12:56:32 End 2024.04.05 @ 13:26:15 Sessions 1 Manual Loads 0 Difficulty Rogue Special Mode None Game No. 22 Rogue 16 Adventurer 6 Explorer 0 Win Type - Total 0 Types 0/0/0/0/0/0/0/0/0 Lore% 16 Gallery% 27 Achievement% 20 Wizard Run 0 Options --------- Layout 0 ASCII 0 Keyboard 1 Movement Numpad Keybinds 0 Fullscreen 1 Font 18/SmallcapsGlow Map View 76x50 Zoom Use 0% Tactical HUD 1 Map Filters NONE Filters NONE Steam 1 RUN: 282ada12-189b-4efd-b0ff-dedd40db5527